lending/lending_fUSD_20240721
["ID","MTS","AMOUNT","RATE_DAILY","PERIOD"]
[332802012,1721535031743,-186.14,0.00019395,2]
[332802013,1721535031752,-276.62111547,0.00019398,2]
[332802014,1721535031766,-150.292,0.00019446,2]
[332802015,1721535031778,-250.0,0.00019451,2]
[332802016,1721535031788,-199.77828073,0.0002012,2]
[332802017,1721535031797,-155.30785016,0.0002038,2]
[332802018,1721535031809,-73.08626412,0.00020447,2]
[332802019,1721535031834,-249.55373588,0.00020447,2]
[332802020,1721535031844,-150.0,0.0002046,2]
[332802021,1721535031854,-155.0,0.00020588,2]
[332802022,1721535031863,-155.0,0.00020588,2]
[332802023,1721535031873,-2123.31173147,0.0002083,2]
[332802024,1721535031883,-155.0,0.00020999,2]
[332802025,1721535031893,-300.0,0.00021,2]
[332802026,1721535031902,-1000.0,0.00021223,2]
[332802027,1721535031911,-233.6,0.00021301,2]
[332802028,1721535031921,-153.98568546,0.00021308,2]
[332802029,1721535031931,-186.14,0.00021659,2]
[332802030,1721535031940,-300.23174517,0.00021683,2]
[332802031,1721535031950,-340.38044388,0.00021683,7]
[332802032,1721535031960,-155.0,0.00021683,2]
[332802033,1721535031969,-448.7960396,0.00021683,2]
[332802034,1721535031978,-184.59377291,0.00021683,2]
[332802035,1721535031989,-155.06291907,0.00021683,2]
[332802036,1721535031998,-155.0,0.00021683,2]
[332802037,1721535032007,-989.95151407,0.00021736,2]
[332802038,1721535032022,-10.04848593,0.00021736,2]
[332802039,1721535032032,-290.97232858,0.00021743,2]
[332802041,1721535037568,-838.78600828,0.00021743,2]
[332802042,1721535037623,-1315.96166314,0.00021743,2]
[332802043,1721535037633,-892.26891273,0.00021761,2]
[332802044,1721535037677,-1858.73108727,0.00021761,2]
[332802045,1721535037687,-161.68,0.00021828,2]
[332802046,1721535037696,-171.31,0.00021893,2]
[332802047,1721535037706,-150.0,0.00021918,2]
[332802048,1721535037715,-215.67,0.00021918,2]
[332802049,1721535037724,-153.98568546,0.00021968,2]
[332802050,1721535037733,-399.12,0.00021983,2]
[332802051,1721535037743,-237.45,0.00021984,2]
[332802052,1721535037752,-155.60558696,0.00022106,2]
[332802053,1721535037762,-166.75284296,0.00022187,2]
[332802054,1721535037775,-208.0,0.00022195,2]
[332802055,1721535037784,-150.0,0.00022495,2]
[332802056,1721535037794,-155.60558696,0.00022674,2]
[332802057,1721535037803,-167.0,0.00022713,2]
[332802058,1721535037814,-154.23770086,0.00022793,2]
[332802059,1721535037823,-3000.0,0.00023,2]
[332802060,1721535037833,-350.0,0.00023,2]
[332802061,1721535037844,-281.42555117,0.00023,2]
[332802062,1721535037854,-150.0,0.00023071,2]
[332802063,1721535037863,-155.60558696,0.00023215,2]
[332802064,1721535037873,-160.60863665,0.00023443,2]
[332802065,1721535037882,-1299.76293057,0.00023451,2]
[332802066,1721535037894,-484.29211098,0.00023451,2]
[332802067,1721535037909,-3215.94495845,0.00023451,2]
[332802068,1721535037918,-2877.92364415,0.00023451,2]
[332802069,1721535037928,-163.35105681,0.00023453,2]
[332802070,1721535037937,-180.0,0.00023574,2]
[332802071,1721535037947,-153.98568546,0.00023644,2]
[332802073,1721535037956,-150.0,0.00023648,2]
[332802075,1721535037965,-171.31,0.000237,2]
[332802077,1721535037974,-153.98568546,0.00023824,2]
[332802079,1721535037984,-186.14,0.00023922,2]
[332802081,1721535037993,-167.0,0.00023963,2]
[332802083,1721535038002,-233.6,0.00023964,2]
[332802085,1721535038011,-153.98568546,0.00023994,2]
[332802087,1721535038021,-327.8147916,0.00024124,2]
[332802089,1721535038031,-327.8147916,0.00024124,2]
[332802091,1721535038042,-3051.00113365,0.00024124,2]
[332802093,1721535038051,-1929.33186776,0.00024124,2]
[332802095,1721535038061,-152.0,0.00024179,3]
[332802097,1721535038070,-150.0,0.00024225,2]
[332802099,1721535038079,-600.0,0.000243,8]
[332802101,1721535038089,-155.60558696,0.00024308,2]
[332802103,1721535038098,-1200.0,0.000244,8]
[332802105,1721535038108,-1000.0,0.00024453,2]
[332802107,1721535038117,-1141.03776211,0.000245,2]
[332802109,1721535038126,-1800.0,0.000245,8]
[332802111,1721535038135,-2400.0,0.000246,8]
[332802113,1721535038145,-153.98568546,0.00024611,2]
[332802115,1721535038154,-3000.0,0.000247,9]
[332802117,1721535038163,-151.48775,0.0002475,2]
[332802119,1721535038176,-703.29585027,0.00024799,2]
[332802121,1721535038185,-20671.6984,0.000248,2]
[332802123,1721535038195,-500.0,0.000248,2]
[332802125,1721535038204,-600.0,0.000248,9]
[332802127,1721535038213,-150.0,0.00024802,2]
[332802129,1721535038222,-213.85417434,0.00024896,2]
[332802131,1721535038231,-2500.0,0.00024899,2]
[332802133,1721535038242,-7662.01161499,0.00024899,2]
[332802135,1721535038251,-306.18145975,0.00024899,2]
[332802137,1721535038261,-227.49811675,0.00024899,2]
[332802139,1721535038270,-1000.0,0.000249,2]
[332802141,1721535038280,-216.0,0.000249,2]
[332802143,1721535038289,-441.7725,0.000249,2]
[332802145,1721535038298,-3265.3207251,0.000249,2]
[332802149,1721535038331,-14534.9909749,0.000249,2]
[332802151,1721535038341,-169.35584344,0.000249,2]
[332802153,1721535038351,-600.0,0.000249,9]
[332802155,1721535038360,-15979.89696758,0.000249,2]
[332802158,1721535038371,-955.45573999,0.000249,2]
[332802287,1721535039618,-2022.4432734,0.00024899,2]
[332802289,1721535039628,-1031.75070981,0.000249,2]
[332802291,1721535039640,-379.9422459,0.000249,2]
[332802297,1721535039782,-6032.55630432,0.000249,2]
[332802298,1721535039794,-687.04703702,0.000249,2]
[332802299,1721535039838,-31964.35099538,0.000249,2]
[332802300,1721535039848,-294.65215982,0.000249,4]
[332802301,1721535039858,-373.96037194,0.000249,2]
[332802302,1721535039867,-315.01129805,0.000249,2]
[332802303,1721535039877,-3974.83128712,0.00024979,2]
[332802304,1721535039886,-892.07802635,0.00024979,2]
[332802305,1721535039896,-521.74362309,0.00024989,2]
[332802307,1721535039905,-155.0,0.00024989,2]
[332802309,1721535039915,-198.49354233,0.0002499,2]
[332802311,1721535039924,-886.74677126,0.00024996,2]
[332802313,1721535039934,-5311.40787462,0.00024999,5]
[332802315,1721535039945,-172990.73336403,0.00024999,5]
[332802317,1721535039954,-732.52,0.00024999,2]
[332802319,1721535039964,-717.905463,0.00024999,2]
[332802321,1721535039973,-37684.85304809,0.00025,2]
[332802594,1721535042661,-327.8147916,0.00023873,2]
[332802596,1721535042671,-2631.61932234,0.000249,2]
[332802598,1721535042680,-24949.07549653,0.00025,2]
[332802618,1721535042818,-3898.14041674,0.00025,2]
[332802620,1721535042829,-44781.60921649,0.00025,2]
[332802637,1721535042976,-3680.30187106,0.00025,2]
[332802830,1721535045643,-560.11813831,0.00024899,2]
[332802831,1721535045750,-808.08854023,0.00024899,2]
[332802832,1721535045764,-2606.62460858,0.00024899,2]
[332802833,1721535045777,-521.74362309,0.00024979,2]
[332802834,1721535045787,-2208.85023654,0.00025,2]
[332802835,1721535045872,-1609.98415243,0.00025,2]
[332802836,1721535045884,-19318.41220142,0.00025,2]
[332802837,1721535045962,-637.56674489,0.00025,2]
[332802838,1721535045974,-605.85525226,0.00025,2]
[332802839,1721535045986,-500.0,0.00025,2]
[332803108,1721535441446,163.84,0.00021547,30]
[332803109,1721535929323,150.0,0.000118,2]
[332803110,1721535929344,150.0,0.000118,2]
[332803111,1721535929366,150.0,0.000118,2]
[332803112,1721535929386,214.39,0.000118,2]
[332803113,1721535929409,1633.06237006,0.000118,2]
[332803114,1721536001050,245.04256501,0.000118,2]
[332803115,1721536005179,150.0,0.000118,2]
[332803116,1721536005200,5.0,0.000118,2]
[332803117,1721536013607,150.0,0.000118,2]
[332803118,1721536013628,141.13157161,0.000118,2]
[332803119,1721536020270,163.84,0.00020644,30]
[332803130,1721536231758,-155.87,0.0001399,3]
[332803132,1721536231767,-500.0,0.00013999,2]
[332803133,1721536231777,-477.98363221,0.00013999,2]
[332803134,1721536231786,-153.4410944,0.00013999,2]
[332803135,1721536231795,-300.0,0.00013999,2]
[332803136,1721536231804,-150.0,0.00013999,2]
[332803137,1721536231814,-62655.78022687,0.00014,2]
[332803138,1721536232039,-42352.2018741,0.00014,2]
[332803139,1721536237849,-534.02114835,0.00014,2]
[332803140,1721536237867,-1048.32267726,0.00014,2]
[332803141,1721536237890,-3742.70217563,0.00014,2]
[332803142,1721536237901,-1356.00596654,0.00014,2]
[332803143,1721536238004,-229.11843409,0.00014,2]
[332803144,1721536238147,-360.86093302,0.00014,2]
[332803151,1721536238270,-43108.30251922,0.00014,2]
[332803296,1721536239878,-759.6,0.0001399,3]
[332803298,1721536239888,-1581.00272096,0.00014,2]
[332803300,1721536239899,-3055.70487477,0.00014,2]
[332803603,1721536242950,-1667.49999999,0.00014,2]
[332803695,1721536244034,-1435.66,0.00014,2]
[332803796,1721536245898,-31057.13599495,0.00014,2]
[332803797,1721536246095,-69701.71977126,0.00014,2]
[332804239,1721536512810,1549.05393045,0.00013999,5]
[332804240,1721536541801,158.88,0.00018849,30]
[332804241,1721536631489,-370.438834,0.00013829,2]
[332804242,1721536631513,-300.0,0.00013899,2]
[332804243,1721536631539,-2328.561166,0.000139,2]
[332804244,1721537081882,168.8,0.0002484,120]
[332804245,1721537093515,158.88,0.00018849,30]
[332804246,1721537296445,-2090.91327,0.0001386,2]
[332804247,1721537296467,-175.70923076,0.000139,2]
[332804248,1721537296488,-315.01129804,0.000139,2]
[332804249,1721537296508,-150.0,0.00013973,2]
[332804250,1721537296529,-290.37,0.00013973,2]
[332804251,1721537296555,-300.0,0.00013989,2]
[332804252,1721537296577,-150.0,0.00013989,2]
[332804253,1721537296601,-2384.29117776,0.00013989,2]
[332804254,1721537296624,-4037.31770087,0.00013999,2]
[332804255,1721537296645,-500.0,0.00013999,2]
[332804256,1721537296667,-376.62598809,0.00013999,2]
[332804257,1721537296693,-1273469.27037995,0.00014,2]
[332804258,1721537372647,159.82627226,0.00014,2]
[332804259,1721537379487,527.63338735,0.00014,2]
[332804262,1721537431952,-308.06435349,0.00014451,2]
[332804268,1721537432171,-5001.82916727,0.00014451,2]
[332804269,1721537432227,-633.48526564,0.00014451,2]
[332804270,1721537437974,-748.899216,0.00014578,2]
[332804271,1721537437983,-918.13824236,0.00014667,2]
[332804272,1721537437995,-312.47476205,0.00014667,2]
[332804273,1721537438072,-3230.16266992,0.00014667,2]
[332804274,1721537438083,-338.03,0.00014677,2]
[332804275,1721537438093,-198.46920995,0.000147,2]
[332804276,1721537438102,-1349.66,0.000147,2]
[332804277,1721537438112,-300.0,0.00014788,2]
[332804278,1721537438123,-300.0,0.00014788,2]
[332804279,1721537438133,-2391.51955849,0.00014789,2]
[332804280,1721537438143,-3586.98,0.000148,2]
[332804281,1721537438154,-150.99,0.000148,2]
[332804282,1721537438164,-499.99,0.000148,2]
[332804283,1721537438174,-192.80357343,0.00014899,2]
[332804284,1721537438183,-236.00243342,0.00014988,2]
[332804285,1721537438193,-485.15544657,0.00014988,2]
[332804286,1721537438203,-495.77950288,0.00014988,2]
[332804287,1721537438212,-258.42058237,0.00014988,2]
[332804288,1721537438222,-209.57976585,0.00014988,2]
[332804289,1721537438231,-326.00293411,0.00014988,2]
[332804290,1721537438241,-173.8897116,0.00014988,2]
[332804291,1721537438251,-164.0610982,0.00014999,2]
[332804292,1721537438261,-220.44307146,0.00014999,2]
[332804293,1721537438270,-439.46122706,0.00014999,2]
[332804294,1721537438280,-243.34571443,0.00014999,2]
[332804295,1721537438290,-155.64682342,0.00014999,2]
[332804296,1721537438299,-353.03791922,0.00014999,2]
[332804297,1721537438309,-150.0,0.00015,2]
[332804298,1721537438318,-5943.69,0.00015229,2]
[332804299,1721537438327,-155.0,0.00015369,2]
[332804300,1721537438337,-155.0,0.00015369,2]
[332804302,1721537438347,-208.21441525,0.00015369,2]
[332804304,1721537438355,-295.0223167,0.00015369,2]
[332804305,1721537438365,-159.01791684,0.00015369,2]
[332804307,1721537438374,-748.899216,0.00015725,2]
[332804309,1721537438385,-156.44729799,0.0001587,2]
[332804311,1721537438395,-156.492648,0.00015912,2]
[332804313,1721537438405,-3974.83128712,0.00015999,2]
[332804315,1721537438414,-117.7397041,0.00016,2]
[332804324,1721537438520,-4882.2602959,0.00016,2]
[332804326,1721537438532,-275.67465936,0.00016033,2]
[332804328,1721537438542,-534.84389696,0.00016159,2]
[332804330,1721537438552,-534.84389696,0.00016159,2]
[332804332,1721537438562,-420.0,0.00016188,2]
[332804333,1721537438572,-525.41980997,0.00016232,2]
[332804335,1721537438582,-2205.88198324,0.00016232,2]
[332804337,1721537438591,-590.12,0.00016341,2]
[332804339,1721537438601,-2090.91328,0.0001636,2]
[332804340,1721537438610,-369.21,0.00016425,2]
[332804342,1721537438619,-169.68,0.00016529,2]
[332804344,1721537438630,-168.8,0.0001656,2]
[332804346,1721537438643,-10025.65,0.0001656,2]
[332804348,1721537438654,-250.0,0.00016597,2]
[332804350,1721537438663,-1468.7,0.00016632,2]
[332804351,1721537438674,-175.70923073,0.0001665,2]
[332804353,1721537438683,-1292.83,0.00016678,2]
[332804355,1721537438694,-23900.0,0.00016712,2]
[332804357,1721537438707,-1342.87,0.00016784,2]
[332804359,1721537438716,-1000.0,0.00016814,2]
[332804361,1721537438726,-250.0,0.00016837,2]
[332804363,1721537438736,-748.899216,0.00016872,2]
[332804365,1721537438745,-338.03,0.00016941,2]
[332804366,1721537438754,-200.0,0.00017,2]
[332804405,1721537439160,-186.65,0.00017021,2]
[332804407,1721537439176,-167.0,0.00017028,2]
[332804409,1721537439186,-200.0,0.00017067,2]
[332804411,1721537439196,-2833.85725186,0.00017259,2]
[332804413,1721537439205,-1296.43589473,0.0001738,2]
[332804415,1721537439215,-1296.43589473,0.0001738,2]
[332804417,1721537439224,-587.0,0.00017721,2]
[332804419,1721537439234,-155.21785482,0.00017782,2]
[332804421,1721537439244,-2759.0,0.000178,2]
[332804423,1721537439253,-3051.00113365,0.00018,2]
[332804425,1721537439263,-748.899216,0.00018019,2]
[332804427,1721537439273,-276.62111547,0.00018081,2]
[332804428,1721537439283,-175.2,0.00018308,2]
[332804430,1721537439292,-10801.1,0.00018356,2]
[332804432,1721537439302,-150.0,0.00018356,2]
[332804434,1721537439311,-150.105,0.00018356,2]
[332804436,1721537439321,-153.98568551,0.00018772,2]
[332804438,1721537439330,-340.38044388,0.00018849,4]
[332804440,1721537439339,-155.0,0.00018849,2]
[332804441,1721537439348,-2090.91328,0.0001886,2]
[332804443,1721537439358,-1000.0,0.00018916,2]
[332804445,1721537439368,-176.33,0.00018952,2]
[332804447,1721537439378,-250.0,0.00019,2]
[332804449,1721537439387,-748.899216,0.00019166,2]
[332804451,1721537439398,-166.66666667,0.00019184,2]
[332804453,1721537439408,-338.03,0.00019205,2]
[332804455,1721537439418,-155.60558696,0.00019301,2]
[332804456,1721537439428,-168.8,0.0001932,2]
[332804458,1721537439438,-823.0,0.00019399,2]
[332804460,1721537439448,-175.70923073,0.000194,2]
[332804462,1721537439458,-531.52423191,0.00019451,2]
[332804464,1721537439469,-253.92596233,0.00019451,2]
[332804466,1721537439479,-274.75496262,0.00019599,2]
[332804468,1721537439488,-155.94199334,0.00019599,2]
[332804470,1721537439498,-156.49323752,0.00019725,2]
[332804472,1721537439508,-155.0,0.0002,2]
[332804474,1721537439518,-278.29517735,0.0002,2]
[332804476,1721537439527,-1536.88234212,0.0002,2]
[332804478,1721537439537,-189.01970703,0.0002,2]
[332804479,1721537439547,-1284.54942005,0.0002,2]
[332804481,1721537439558,-45118.18839605,0.0002,2]
[332804483,1721537439568,-151.0,0.0002,2]
[332804485,1721537439579,-151.0,0.0002,2]
[332804487,1721537439590,-151.0,0.0002,2]
[332804489,1721537439601,-151.0,0.0002,2]
[332804491,1721537439611,-151.0,0.0002,2]
[332804493,1721537439622,-265.973585,0.0002,2]
[332804495,1721537439635,-152.101324,0.0002,2]
[332804497,1721537439647,-151.0,0.0002,2]
[332804499,1721537439659,-151.0,0.0002,2]
[332804502,1721537439676,-151.0,0.0002,2]
[332804504,1721537439690,-151.0,0.0002,2]
[332804506,1721537439701,-215.945859,0.0002,2]
[332804508,1721537439712,-181.722847,0.0002,2]
[332804510,1721537439722,-181.722847,0.0002,2]
[332804512,1721537439732,-151.0,0.0002,2]
[332804514,1721537439743,-151.531895,0.0002,2]
[332804516,1721537439754,-151.0,0.0002,2]
[332804518,1721537439764,-151.0,0.0002,2]
[332804520,1721537439774,-151.0,0.0002,2]
[332804522,1721537439783,-151.0,0.0002,2]
[332804524,1721537439794,-151.0,0.0002,2]
[332804526,1721537439804,-151.0,0.0002,2]
[332804528,1721537439814,-151.0,0.0002,2]
[332804530,1721537439826,-151.0,0.0002,2]
[332804532,1721537439837,-170.558529,0.0002,2]
[332804534,1721537439847,-158.076045,0.0002,2]
[332804537,1721537439859,-152.588067,0.0002,2]
[332804539,1721537439870,-155.614949,0.0002,2]
[332804541,1721537439880,-151.0,0.0002,2]
[332804543,1721537439890,-151.0,0.0002,2]
[332804544,1721537439900,-158.962866,0.0002,2]
[332804545,1721537439911,-229.096359,0.0002,2]
[332804546,1721537439921,-229.096359,0.0002,2]
[332804547,1721537439930,-151.0,0.0002,2]
[332804548,1721537439940,-168.020059,0.0002,2]
[332804549,1721537439950,-152.210984,0.0002,2]
[332804550,1721537439960,-305.703796,0.0002,2]
[332804551,1721537439970,-151.0,0.0002,2]
[332804552,1721537439981,-305.703796,0.0002,2]
[332804553,1721537439991,-151.0,0.0002,2]
[332804554,1721537440001,-151.0,0.0002,2]
[332804555,1721537440011,-151.0,0.0002,2]
[332804556,1721537440021,-162.903886,0.0002,2]
[332804557,1721537440031,-151.0,0.0002,2]
[332804558,1721537440041,-153.8495,0.0002,2]
[332804559,1721537440051,-151.0,0.0002,2]
[332804560,1721537440061,-152.604546,0.0002,2]
[332804561,1721537440070,-151.0,0.0002,2]
[332804562,1721537440080,-250.854426,0.0002,2]
[332804563,1721537440090,-151.0,0.0002,2]
[332804564,1721537440101,-216.24,0.0002,2]
[332804565,1721537440110,-216.24,0.0002,2]
[332804566,1721537440121,-216.24,0.0002,2]
[332804567,1721537440131,-216.24,0.0002,2]
[332804568,1721537440141,-216.24,0.0002,2]
[332804569,1721537440150,-216.24,0.0002,2]
[332804570,1721537440160,-216.24,0.0002,2]
[332804571,1721537440169,-216.24,0.0002,2]
[332804572,1721537440179,-216.24,0.0002,2]
[332804573,1721537440189,-216.24,0.0002,2]
[332804574,1721537440200,-216.24,0.0002,2]
[332804576,1721537440210,-216.24,0.0002,2]
[332804577,1721537440220,-216.24,0.0002,2]
[332804579,1721537440231,-216.24,0.0002,2]
[332804580,1721537440241,-216.24,0.0002,2]
[332804582,1721537440251,-216.24,0.0002,2]
[332804584,1721537440261,-216.24,0.0002,2]
[332804587,1721537440273,-216.24,0.0002,2]
[332804589,1721537440283,-216.24,0.0002,2]
[332804591,1721537440293,-216.24,0.0002,2]
[332804593,1721537440304,-216.24,0.0002,2]
[332804595,1721537440316,-216.24,0.0002,2]
[332804598,1721537440328,-216.24,0.0002,2]
[332804599,1721537440338,-216.24,0.0002,2]
[332804601,1721537440348,-216.24,0.0002,2]
[332804603,1721537440359,-216.24,0.0002,2]
[332804605,1721537440369,-216.24,0.0002,2]
[332804607,1721537440380,-216.24,0.0002,2]
[332804609,1721537440391,-216.24,0.0002,2]
[332804611,1721537440401,-216.24,0.0002,2]
[332804613,1721537440412,-216.24,0.0002,2]
[332804615,1721537440422,-216.24,0.0002,2]
[332804617,1721537440434,-216.24,0.0002,2]
[332804619,1721537440444,-216.24,0.0002,2]
[332804621,1721537440455,-216.24,0.0002,2]
[332804623,1721537440465,-216.24,0.0002,2]
[332804625,1721537440475,-216.24,0.0002,2]
[332804627,1721537440484,-216.24,0.0002,2]
[332804629,1721537440494,-216.24,0.0002,2]
[332804631,1721537440504,-216.24,0.0002,2]
[332804633,1721537440514,-216.24,0.0002,2]
[332804635,1721537440525,-216.24,0.0002,2]
[332804637,1721537440535,-2022.4432734,0.00020222,2]
[332804639,1721537440545,-748.899216,0.00020312,2]
[332804641,1721537440555,-156.358383,0.0002038,2]
[332804643,1721537440565,-186.65,0.00020425,2]
[332804645,1721537440575,-290.37,0.00020447,2]
[332804647,1721537440585,-190.72120361,0.00020588,2]
[332804649,1721537440594,-448.7960396,0.00020644,2]
[332804651,1721537440604,-3113.03843627,0.00020821,2]
[332804653,1721537440614,-251.58179602,0.00020821,2]
[332804656,1721537440625,-472.17666867,0.00020821,2]
[332804658,1721537440638,-494.91277936,0.00020831,2]
[332804660,1721537440651,-500.0,0.00020831,2]
[332804662,1721537440662,-150.0,0.0002087,2]
[332804665,1721537440673,-613.63819166,0.00020999,2]
[332804667,1721537440682,-300.0,0.00021,2]
[332804669,1721537440691,-179561.45841672,0.00021,2]
[332804827,1721537442207,-728.34185525,0.00014667,2]
[332804829,1721537442216,-365.10438856,0.00017807,2]
[332804831,1721537442226,-2497.75927572,0.00018529,2]
[332804833,1721537442235,-155.0,0.00019319,2]
[332804835,1721537442244,-216.24,0.0002,2]
[332804837,1721537442253,-216.24,0.0002,2]
[332804839,1721537442263,-216.24,0.0002,2]
[332804841,1721537442272,-216.24,0.0002,2]
[332804843,1721537442281,-216.24,0.0002,2]
[332804845,1721537442290,-216.24,0.0002,2]
[332804847,1721537442300,-216.24,0.0002,2]
[332804849,1721537442309,-216.24,0.00020415,2]
[332804851,1721537442318,-2025585.54158328,0.00021,2]
[332804853,1721537442327,-1000.0,0.00021017,2]
[332804854,1721537442336,-156.0,0.00021069,2]
[332804856,1721537442346,-3000.0,0.000211,2]
[332804858,1721537442355,-1152.0,0.00021235,2]
[332804860,1721537442364,-150.0,0.00021356,2]
[332804862,1721537442374,-175.2,0.00021359,2]
[332804864,1721537442383,-2090.91328,0.0002136,2]
[332804866,1721537442392,-748.899216,0.00021459,2]
[332804868,1721537442401,-338.03,0.00021469,2]
[332804870,1721537442411,-717.905463,0.00021683,2]
[332804872,1721537442421,-220.0,0.0002169,2]
[332804874,1721537442430,-1000.0,0.00021918,2]
[332804876,1721537442439,-1000.0,0.00021918,2]
[332804878,1721537442449,-1000.0,0.00021918,2]
[332804880,1721537442458,-1000.0,0.00021918,2]
[332804882,1721537442467,-913.0,0.00021918,2]
[332804884,1721537442477,-150.0,0.00021918,2]
[332804886,1721537442487,-512.32,0.00021918,2]
[332804888,1721537442496,-500.0,0.00021918,2]
[332804889,1721537442505,-500.0,0.00021918,2]
[332804891,1721537442515,-500.0,0.00021918,2]
[332804894,1721537442525,-500.0,0.00021918,2]
[332804895,1721537442534,-500.0,0.00021918,2]
[332804897,1721537442543,-500.0,0.00021918,2]
[332804899,1721537442553,-500.0,0.00021918,2]
[332804901,1721537442562,-500.0,0.00021918,2]
[332804903,1721537442572,-500.0,0.00021918,2]
[332804905,1721537442581,-500.0,0.00021918,2]
[332804907,1721537442591,-500.0,0.00021918,2]
[332804909,1721537442600,-500.0,0.00021918,2]
[332804911,1721537442609,-500.0,0.00021918,2]
[332804913,1721537442618,-500.0,0.00021918,2]
[332804915,1721537442628,-500.0,0.00021918,2]
[332804917,1721537442642,-500.0,0.00021918,2]
[332804919,1721537442651,-500.0,0.00021918,2]
[332804921,1721537442660,-500.0,0.00021918,2]
[332804923,1721537442669,-500.0,0.00021918,2]
[332804925,1721537442678,-500.0,0.00021918,2]
[332804927,1721537442687,-500.0,0.00021918,2]
[332804929,1721537442696,-500.0,0.00021918,2]
[332804931,1721537442705,-500.0,0.00021918,2]
[332804933,1721537442714,-500.0,0.00021918,2]
[332804934,1721537442723,-500.0,0.00021918,2]
[332804936,1721537442732,-500.0,0.00021918,2]
[332804938,1721537442741,-500.0,0.00021918,2]
[332804940,1721537442750,-500.0,0.00021918,2]
[332804942,1721537442759,-500.0,0.00021918,2]
[332804944,1721537442769,-500.0,0.00021918,2]
[332804946,1721537442778,-500.0,0.00021918,2]
[332804948,1721537442787,-500.0,0.00021918,2]
[332804950,1721537442796,-500.0,0.00021918,2]
[332804952,1721537442805,-500.0,0.00021918,2]
[332804953,1721537442814,-500.0,0.00021918,2]
[332804955,1721537442824,-500.0,0.00021918,2]
[332804957,1721537442833,-500.0,0.00021918,2]
[332804959,1721537442842,-500.0,0.00021918,2]
[332804961,1721537442851,-500.0,0.00021918,2]
[332804963,1721537442860,-500.0,0.00021918,2]
[332804966,1721537442870,-500.0,0.00021918,2]
[332804969,1721537442880,-500.0,0.00021918,2]
[332804971,1721537442889,-500.0,0.00021918,2]
[332804974,1721537442898,-500.0,0.00021918,2]
[332804976,1721537442907,-500.0,0.00021918,2]
[332804979,1721537442916,-500.0,0.00021918,2]
[332804982,1721537442926,-500.0,0.00021918,2]
[332804985,1721537442935,-500.0,0.00021918,2]
[332804988,1721537442945,-500.0,0.00021918,2]
[332804991,1721537442954,-500.0,0.00021918,2]
[332804993,1721537442964,-500.0,0.00021918,2]
[332804997,1721537442973,-500.0,0.00021918,2]
[332805001,1721537442982,-500.0,0.00021918,2]
[332805004,1721537442991,-500.0,0.00021918,2]
[332805007,1721537443001,-500.0,0.00021918,2]
[332805010,1721537443010,-500.0,0.00021918,2]
[332805013,1721537443020,-500.0,0.00021918,2]
[332805016,1721537443029,-500.0,0.00021918,2]
[332805019,1721537443039,-500.0,0.00021918,2]
[332805022,1721537443048,-500.0,0.00021918,2]
[332805024,1721537443057,-500.0,0.00021918,2]
[332805027,1721537443066,-500.0,0.00021918,2]